bitfinex/quotes_SOLUSD_20251206
["timestamp","ask_amount","ask_price","bid_price","bid_amount"]
[1765055966966,9.0,132.63,132.6,13.40803946]
[1765055968654,8.32,132.63,132.62,5.18662851]
[1765055969065,8.32,132.63,132.62,5.86662851]
[1765055970873,16.53885883,132.65,132.62,5.86662851]
[1765055972653,9.0,132.65,132.62,13.40681776]
[1765055973254,16.53867261,132.65,132.62,5.86662851]
[1765055973950,0.68,132.64,132.61,0.68]
[1765055974157,0.68,132.64,132.62,5.18662851]
[1765055974649,0.68,132.64,132.61,5.86662851]
[1765055975867,8.21954298,132.64,132.61,5.18662851]
[1765055976044,13.40617149,132.64,132.59,12.72848809]
[1765055976245,5.86662851,132.63,132.58,13.40914857]
[1765055976446,8.32,132.62,132.58,5.18662851]
[1765055976757,16.54081659,132.62,132.58,5.18662851]
[1765055977069,0.68,132.61,132.58,5.86662851]
[1765055978165,0.68,132.61,132.58,13.40918976]
[1765055978364,15.86081659,132.62,132.6,5.18662851]
[1765055978582,8.32,132.62,132.6,5.18662851]
[1765055978760,8.32,132.62,132.61,5.86662851]
[1765055979161,7.53937658,132.64,132.61,5.86662851]
[1765055979370,8.32,132.64,132.62,5.86662851]
[1765055980571,8.32,132.64,132.62,3.99136095]
[1765055983077,8.32,132.64,132.63,3.31136095]
[1765055983875,9.0,132.64,132.63,3.31136095]
[1765055985772,8.32,132.64,132.63,3.31136095]
[1765055987979,9.0,132.64,132.63,3.31136095]
[1765055988681,9.0,132.64,132.58,32.10126597]
[1765055988682,19.85059981,132.64,132.59,3.31136095]
[1765055988982,3.99136095,132.63,132.59,3.31136095]
[1765055989162,9.0,132.62,132.59,3.31136095]
[1765055989478,9.0,132.62,132.59,3.99136095]
[1765055991281,9.0,132.62,132.6,3.31136095]
[1765055991494,9.0,132.62,132.61,3.31136095]
[1765055991495,8.32,132.62,132.61,3.31136095]
[1765055992360,15.86034082,132.62,132.6,4.03136095]
[1765055993665,0.67,132.61,132.59,3.31136095]
[1765055993983,0.67,132.61,132.58,3.31136095]
[1765055994486,3.98136095,132.61,132.56,3.31136095]
[1765055994661,7.54147812,132.6,132.56,3.97136095]
[1765055994861,8.32,132.59,132.56,3.97136095]
[1765055995064,8.99,132.59,132.56,3.97136095]
[1765055995886,8.99,132.59,132.57,3.31136095]
[1765055996792,8.32,132.59,132.57,3.97136095]
[1765055998672,8.32,132.59,132.58,0.66]
[1765055998862,8.32,132.59,132.57,3.97136095]
[1765056000195,15.86104786,132.61,132.58,3.97136095]
[1765056000402,15.86104786,132.61,132.58,3.31136095]
[1765056000598,0.67,132.6,132.58,3.31136095]
[1765056000915,0.67,132.6,132.56,3.31136095]
[1765056001202,0.67,132.6,132.56,3.97136095]
[1765056001383,0.67,132.6,132.56,3.31136095]
[1765056001586,3.31136095,132.58,132.53,10.85633796]
[1765056001806,8.99,132.57,132.54,11.51608813]
[1765056002087,8.32,132.57,132.56,3.31136095]
[1765056002871,8.32,132.57,132.56,3.97136095]
[1765056003373,8.32,132.59,132.56,11.51511472]
[1765056003571,8.99,132.59,132.57,3.31136095]
[1765056004069,8.99,132.59,132.56,3.97136095]
[1765056004686,0.67,132.58,132.55,3.31136095]
[1765056004874,0.67,132.58,132.55,3.97136095]
[1765056006017,0.67,132.58,132.55,3.31136095]
[1765056006197,0.67,132.58,132.55,3.97136095]
[1765056007300,0.67,132.58,132.56,3.97136095]
[1765056007494,16.5323815,132.59,132.56,3.97136095]
[1765056007875,8.32,132.59,132.57,3.97136095]
[1765056008400,8.99,132.59,132.57,3.97136095]
[1765056008595,8.32,132.59,132.58,3.97136095]
[1765056008802,8.32,132.59,132.58,3.31136095]
[1765056008982,8.99,132.59,132.56,0.66]
[1765056009190,8.99,132.59,132.56,3.97136095]
[1765056009387,0.67,132.58,132.54,7.5446573]
[1765056009583,3.98136095,132.58,132.53,24.51417675]
[1765056009783,3.98136095,132.58,132.54,3.97136095]
[1765056009989,0.67,132.57,132.54,3.97136095]
[1765056010699,0.67,132.58,132.55,3.97136095]
[1765056010902,8.32,132.59,132.57,3.31136095]
[1765056011107,8.32,132.59,132.58,3.31136095]
[1765056011407,16.53102781,132.61,132.58,3.31136095]
[1765056011594,16.53102781,132.61,132.58,3.97136095]
[1765056011799,16.53102781,132.61,132.59,3.31136095]
[1765056012491,16.53102781,132.61,132.58,11.51396414]
[1765056013707,8.99,132.61,132.58,11.51396414]
[1765056013895,8.32,132.61,132.59,3.97136095]
[1765056014908,8.99,132.61,132.59,3.31136095]
[1765056016306,8.32,132.61,132.59,3.97136095]
[1765056018005,0.67,132.6,132.56,3.31136095]
[1765056018177,0.67,132.6,132.55,3.31136095]
[1765056018178,3.98136095,132.6,132.55,3.31136095]
[1765056018381,3.98136095,132.6,132.55,3.97136095]
[1765056018579,0.67,132.59,132.55,3.97136095]
[1765056018783,8.32,132.58,132.55,3.97136095]
[1765056019085,3.31136095,132.6,132.57,3.31136095]
[1765056019086,8.32,132.6,132.57,3.31136095]
[1765056019285,8.32,132.6,132.58,3.31136095]
[1765056021913,16.55164615,132.6,132.57,4.03136095]
[1765056022818,0.69,132.59,132.55,3.31136095]
[1765056023306,7.54261577,132.58,132.54,11.57602295]
[1765056023615,8.32,132.57,132.55,0.72]
[1765056023812,8.32,132.57,132.55,4.03136095]
[1765056025312,9.01,132.57,132.54,3.31136095]
[1765056025495,0.69,132.56,132.53,4.03136095]
[1765056026099,16.55334228,132.57,132.53,10.85670037]
[1765056026414,16.55334228,132.57,132.54,4.03136095]
[1765056031123,16.55334228,132.57,132.54,0.72]
[1765056031531,15.86334228,132.57,132.54,0.72]
[1765056031825,3.31136095,132.55,132.5,11.57845142]
[1765056032022,8.32,132.54,132.5,11.57845142]
[1765056032324,9.01,132.54,132.5,11.57845142]
[1765056032624,0.69,132.53,132.5,11.57845142]
[1765056032823,9.01,132.54,132.51,0.72]
[1765056033128,0.69,132.53,132.5,10.85845142]
[1765056033338,8.32,132.54,132.51,0.72]
[1765056033519,0.69,132.53,132.5,8.26709047]
[1765056033834,0.69,132.53,132.5,11.57845142]
[1765056035310,0.69,132.53,132.5,10.85845142]
[1765056035611,16.55509034,132.54,132.51,0.72]
[1765056038241,0.69,132.53,132.5,10.85845142]
[1765056038417,0.69,132.53,132.5,11.57845142]
[1765056039038,0.69,132.53,132.5,8.26709047]
[1765056039237,8.23554005,132.53,132.49,11.77889119]
[1765056039535,8.23554005,132.53,132.5,0.72]
[1765056041235,8.23554005,132.53,132.5,5.90354633]
[1765056044132,0.69,132.53,132.5,13.45071523]
[1765056057220,8.23554605,132.53,132.5,13.45071523]
[1765056058420,8.23554605,132.53,132.5,8.2671689]
[1765056061756,0.71,132.52,132.49,13.62089819]
[1765056062256,0.71,132.52,132.5,0.69]
[1765056063845,0.71,132.52,132.5,5.87354633]
[1765056064145,7.54554605,132.53,132.5,5.87354633]
[1765056064353,8.25554605,132.53,132.5,5.87354633]
[1765056064523,8.32,132.54,132.51,5.87354633]
[1765056064723,8.32,132.54,132.52,0.69]
[1765056065146,8.32,132.54,132.51,5.18354633]
[1765056065449,9.03,132.54,132.51,5.87354633]
[1765056066252,9.03,132.54,132.51,13.4201236]
[1765056067927,9.03,132.54,132.51,12.7301236]
[1765056068231,9.03,132.54,132.51,13.4201236]
[1765056068622,8.32,132.54,132.52,5.87354633]
[1765056068826,8.32,132.56,132.53,5.18354633]
[1765056069073,8.32,132.56,132.54,5.18354633]
[1765056069359,8.32,132.56,132.54,5.87354633]
[1765056070245,8.32,132.56,132.55,5.87354633]
[1765056074732,8.32,132.56,132.55,5.18354633]
[1765056079266,8.25221763,132.59,132.55,13.41786922]
[1765056079450,8.25221763,132.59,132.57,5.18354633]
[1765056079451,15.86221763,132.59,132.57,5.18354633]
[1765056079764,16.57221763,132.59,132.57,5.18354633]
[1765056080155,16.57221763,132.59,132.57,5.85354633]
[1765056080365,16.57221763,132.59,132.58,5.18354633]
[1765056080366,8.32,132.59,132.58,5.18354633]
[1765056080866,8.32,132.59,132.58,5.85354633]
[1765056082861,8.32,132.59,132.58,5.18354633]
[1765056084942,8.32,132.59,132.58,5.85354633]
[1765056085475,8.32,132.59,132.58,5.18354633]
[1765056087770,9.02,132.61,132.58,13.3961621]
[1765056087966,9.02,132.61,132.59,5.18354633]
[1765056089774,9.02,132.61,132.59,5.85354633]
[1765056091377,8.32,132.61,132.59,5.18354633]
[1765056091582,8.32,132.61,132.6,5.18354633]
[1765056091755,9.02,132.61,132.6,5.18354633]
[1765056093067,16.56090943,132.61,132.6,5.18354633]
[1765056093268,16.56090943,132.61,132.59,5.18354633]
[1765056094684,9.02,132.61,132.59,5.18354633]
[1765056095158,9.02,132.61,132.6,5.18354633]
[1765056097771,9.02,132.61,132.59,5.18354633]
[1765056102388,9.02,132.61,132.59,3.31280704]
[1765056102686,9.02,132.61,132.59,3.98280704]
[1765056103612,9.02,132.61,132.59,3.31280704]
[1765056104290,8.32,132.61,132.6,3.98280704]
[1765056104665,8.32,132.61,132.6,3.31280704]
[1765056104866,9.02,132.61,132.6,3.31280704]
[1765056105968,7.53980213,132.63,132.6,3.98280704]
[1765056106294,8.32,132.63,132.62,3.31280704]
[1765056108268,8.32,132.63,132.61,0.67]
[1765056108471,9.02,132.63,132.61,0.67]
[1765056108671,8.32,132.63,132.61,0.67]
[1765056111887,8.32,132.63,132.6,7.54147812]
[1765056112085,0.7,132.62,132.58,3.31280704]
[1765056112271,0.7,132.62,132.58,10.855378]
[1765056112489,4.01280704,132.62,132.57,3.98280704]
[1765056112692,4.01280704,132.62,132.57,10.85565372]
[1765056112997,0.7,132.61,132.57,10.85565372]
[1765056113192,8.32,132.6,132.57,3.31280704]
[1765056113493,8.32,132.6,132.56,11.52615078]
[1765056113676,0.7,132.59,132.56,11.52615078]
[1765056113871,0.7,132.59,132.57,0.67]
[1765056114977,0.7,132.59,132.56,10.85615078]
[1765056115288,0.7,132.59,132.56,8.26334374]
[1765056116275,0.7,132.59,132.56,11.57615078]
[1765056118898,8.24207287,132.59,132.55,10.8569209]
[1765056119105,8.24207287,132.59,132.55,11.5769209]
[1765056119298,0.7,132.59,132.56,8.2637454]
[1765056120500,8.32,132.6,132.57,4.03280704]
[1765056120691,8.99,132.6,132.57,4.03280704]
[1765056120892,8.99,132.6,132.58,0.72]
[1765056121400,15.86149855,132.6,132.56,11.57655244]
[1765056121610,3.31280704,132.57,132.53,7.5437454]
[1765056121784,3.31280704,132.55,132.51,11.57901104]
[1765056122092,3.31280704,132.55,132.51,0.72]
[1765056122305,8.99,132.56,132.5,0.72]
[1765056122306,3.98280704,132.54,132.5,0.72]
[1765056122478,3.31280704,132.52,132.49,7.74769365]
[1765056122678,19.84845261,132.53,132.49,7.74769365]
[1765056122879,12.30280704,132.53,132.5,0.72]
[1765056123106,8.99,132.53,132.5,0.72]
[1765056123988,8.99,132.53,132.5,8.26692008]
[1765056126700,15.86551432,132.53,132.5,0.72]
[1765056127000,15.86551432,132.53,132.49,0.2]
[1765056127001,0.67,132.52,132.49,4.23280704]
[1765056127202,0.67,132.52,132.5,3.31280704]
[1765056127393,15.86551432,132.53,132.5,4.03280704]
[1765056127582,16.53551432,132.53,132.5,4.03280704]
[1765056127782,0.67,132.52,132.5,4.03280704]
[1765056128291,0.67,132.52,132.5,3.31280704]
[1765056128482,0.67,132.52,132.5,4.03280704]
[1765056130311,0.67,132.52,132.5,3.31280704]
[1765056130623,0.67,132.52,132.49,11.78040366]
[1765056132716,0.67,132.52,132.49,11.06040366]
[1765056132900,0.67,132.52,132.5,4.03280704]
[1765056133094,0.67,132.52,132.5,3.31280704]
[1765056133494,8.21604493,132.52,132.49,3.51280704]
[1765056133717,0.67,132.51,132.49,0.2]
[1765056133887,8.32,132.5,132.49,0.2]
[1765056134392,8.99,132.5,132.49,0.2]
[1765056135292,16.53716981,132.5,132.49,0.2]
[1765056135591,19.84997685,132.5,132.49,0.2]
[1765056137017,16.53716981,132.5,132.49,0.2]
[1765056138412,15.86716981,132.5,132.49,0.2]
[1765056138726,16.53716981,132.5,132.49,0.2]
[1765056142016,19.84997685,132.5,132.49,0.2]
[1765056143337,16.53716981,132.5,132.49,0.2]
[1765056147545,19.84997685,132.5,132.49,0.2]
[1765056148354,16.53716981,132.5,132.49,0.2]
[1765056150951,19.84997685,132.5,132.49,0.2]
[1765056151751,22.8726088,132.5,132.49,0.2]
[1765056164356,24.74760851,132.5,132.49,0.2]
[1765056166188,24.74760851,132.5,132.47,1e-08]
[1765056166189,16.308864,132.48,132.47,1e-08]
[1765056166396,29.81667075,132.48,132.47,1e-08]
[1765056166687,30.48667075,132.48,132.47,1e-08]
[1765056166889,33.50975959,132.48,132.47,1e-08]
[1765056169370,41.05806876,132.48,132.47,1e-08]
[1765056176308,35.87026201,132.48,132.47,1e-08]
[1765056176478,41.05806876,132.48,132.47,1e-08]
[1765056180921,41.05806876,132.48,132.43,0.2]
[1765056180922,16.308864,132.45,132.43,0.2]
[1765056181211,112.62,132.44,132.43,1e-08]
[1765056181409,16.308864,132.42,132.41,0.2]
[1765056181609,24.628864,132.42,132.41,0.2]
[1765056181819,25.308864,132.42,132.41,0.2]
[1765056182405,33.52113107,132.42,132.41,0.2]
[1765056182793,40.39286041,132.42,132.41,0.2]
[1765056184200,104.3,132.41,132.4,0.2]
[1765056184499,110.16780675,132.41,132.4,0.2]
[1765056184809,117.72010642,132.41,132.4,0.2]
[1765056185013,120.06502418,132.41,132.4,0.2]
[1765056185613,120.06502418,132.41,132.4,0.91]
[1765056185998,120.06502418,132.41,132.4,0.2]
[1765056188314,120.74502418,132.41,132.4,0.2]
[1765056197327,120.06502418,132.41,132.4,0.91]
[1765056197553,128.38502418,132.41,132.4,0.2]
[1765056197715,129.06502418,132.41,132.4,0.2]
[1765056200043,126.04010642,132.41,132.4,0.2]
[1765056202245,129.06502418,132.41,132.4,0.2]
[1765056203046,125.36010642,132.41,132.4,0.87]
[1765056203621,125.36010642,132.41,132.4,0.2]
[1765056212759,120.17229967,132.41,132.4,0.2]
[1765056212930,120.17229967,132.41,132.4,0.87]
[1765056213251,125.36010642,132.41,132.4,0.87]
[1765056213853,120.17229967,132.41,132.4,0.87]
[1765056216557,15.87229967,132.41,132.4,0.87]
[1765056220059,15.87229967,132.41,132.4,0.2]
[1765056220737,15.87229967,132.41,132.4,0.87]
[1765056223464,8.32,132.41,132.4,0.87]
[1765056223670,8.32,132.41,132.4,6.05780675]
[1765056224457,8.32,132.41,132.4,4.19241975]
[1765056226942,8.32,132.41,132.4,0.87]
[1765056229557,8.32,132.41,132.4,4.19241975]
[1765056232872,8.32,132.41,132.4,11.74528984]
[1765056233371,8.32,132.41,132.4,4.19241975]
[1765056236381,8.32,132.41,132.4,0.87]
[1765056237858,8.32,132.41,132.4,4.19241975]
[1765056238177,9.01,132.41,132.4,0.2]
[1765056238366,8.32,132.41,132.4,0.2]
[1765056239884,15.87229967,132.41,132.4,0.2]
[1765056243861,8.32,132.41,132.4,0.86]
[1765056248892,8.32,132.41,132.4,11.73528984]
[1765056251387,111.85074866,132.44,132.4,11.73528984]
[1765056251584,8.32,132.42,132.41,3.98241975]
[1765056264302,7.75287009,132.45,132.41,11.53471942]
[1765056264502,8.32,132.44,132.42,4.04241975]
[1765056264699,8.32,132.44,132.43,0.72]
[1765056265082,8.32,132.44,132.42,4.04241975]
[1765056265706,8.32,132.44,132.42,11.59408059]
[1765056266206,9.04,132.44,132.41,18.82752256]
[1765056266401,0.72,132.43,132.41,11.59465247]
[1765056266797,8.32,132.44,132.41,11.59465247]
[1765056267010,9.04,132.44,132.41,11.59465247]
[1765056267810,16.59061427,132.44,132.41,11.59465247]
[1765056269017,0.72,132.43,132.4,0.2]
[1765056269192,8.32,132.42,132.4,0.92]
[1765056269591,9.04,132.42,132.4,0.92]
[1765056269901,9.04,132.42,132.4,0.2]
[1765056270211,9.04,132.42,132.4,0.92]
[1765056271213,8.32,132.42,132.4,0.92]
[1765056272707,9.04,132.42,132.4,0.92]
[1765056274010,8.32,132.42,132.4,0.92]
[1765056276213,9.04,132.42,132.4,0.92]
[1765056277612,8.32,132.42,132.4,0.92]
[1765056281317,8.32,132.42,132.4,8.4728014]
[1765056281618,8.32,132.42,132.4,11.79522115]
[1765056283100,9.04,132.42,132.4,4.24241975]
[1765056284113,0.72,132.41,132.4,0.2]
[1765056284919,8.32,132.42,132.4,0.2]
[1765056285119,9.04,132.42,132.4,0.2]
[1765056289928,9.04,132.42,132.4,0.92]
[1765056290124,8.32,132.42,132.4,8.47253838]
[1765056290328,9.01,132.42,132.4,8.47253838]
[1765056293235,0.66,132.41,132.4,7.75253838]
[1765056293529,8.32,132.42,132.4,7.75253838]
[1765056293707,8.98,132.42,132.4,7.75253838]
[1765056294724,8.98,132.42,132.4,8.44253838]
[1765056297534,8.98,132.42,132.4,7.75253838]
[1765056299041,8.98,132.42,132.4,8.44253838]
[1765056300740,0.66,132.41,132.4,0.2]
[1765056301426,13.40479795,132.41,132.4,0.2]
[1765056301846,16.42971571,132.41,132.4,0.2]
[1765056303038,25.23966063,132.41,132.4,0.2]
[1765056307722,25.11880892,132.4,132.39,0.2]
[1765056307923,39.2913072,132.4,132.39,0.2]
[1765056310133,46.84417729,132.4,132.39,0.2]
[1765056311134,49.86955262,132.4,132.39,0.2]
[1765056313950,49.86955262,132.4,132.39,1e-08]
[1765056319864,21.50136228,132.39,132.37,1e-08]
[1765056320037,13.51249828,132.38,132.37,1e-08]
[1765056320239,14.20249828,132.38,132.37,1e-08]
[1765056320534,25.80880892,132.37,132.33,0.2]
[1765056320741,5.19249828,132.34,132.33,0.2]
[1765056320963,13.51249828,132.34,132.33,0.2]
[1765056321160,13.51249828,132.34,132.29,5.19249828]
[1765056321161,35.70386056,132.34,132.29,0.67]
[1765056321391,0.69,132.33,132.3,0.67]
[1765056321561,8.32,132.32,132.31,5.19249828]
[1765056321933,23.63785896,132.32,132.31,5.86249828]
[1765056322141,23.63785896,132.32,132.31,0.67]
[1765056322342,15.87743651,132.32,132.31,0.67]
[1765056328350,15.87743651,132.32,132.31,5.86249828]
[1765056330463,15.87743651,132.32,132.31,0.67]
[1765056330645,35.4610278,132.32,132.29,0.67]
[1765056331259,35.4610278,132.32,132.29,5.86249828]
[1765056333365,35.4610278,132.32,132.3,0.67]
[1765056333678,34.7710278,132.32,132.3,5.86249828]
[1765056334043,34.7710278,132.32,132.31,0.67]
[1765056336278,15.87743651,132.32,132.31,5.86249828]
[1765056337146,8.32,132.32,132.31,5.86249828]
[1765056337360,15.87743651,132.32,132.31,5.86249828]
[1765056337956,15.87743651,132.32,132.31,0.67]
[1765056339056,15.87743651,132.32,132.31,5.86249828]
[1765056339256,8.32,132.32,132.31,5.86249828]
[1765056344391,8.32,132.32,132.31,3.99695267]
[1765056348872,7.55710384,132.33,132.31,3.99695267]
[1765056349086,8.32,132.32,132.31,3.99695267]
[1765056352082,7.55949404,132.35,132.31,11.55496037]
[1765056352284,8.32,132.34,132.33,3.32695267]
[1765056352779,8.32,132.34,132.33,4.03695267]
[1765056355618,19.6057171,132.38,132.33,11.59381808]
[1765056355619,7.55412764,132.38,132.33,11.59381808]
[1765056355901,19.60234063,132.4,132.37,3.32695267]
[1765056356102,8.32,132.39,132.37,3.32695267]
[1765056356309,16.59367259,132.39,132.37,3.32695267]
[1765056360186,16.59367259,132.39,132.37,4.03695267]
[1765056360523,8.32,132.39,132.38,4.03695267]
[1765056362710,8.32,132.39,132.38,11.59096384]
[1765056363303,7.55137328,132.43,132.38,11.59096384]
[1765056363518,8.32,132.42,132.41,3.32695267]
[1765056363686,8.32,132.42,132.41,10.87925234]
[1765056363888,8.32,132.42,132.41,11.58925234]
[1765056366007,8.27040172,132.45,132.41,11.58925234]
[1765056366211,8.32,132.44,132.43,3.32695267]
[1765056368014,8.32,132.44,132.43,11.58811177]
[1765056371387,8.32,132.44,132.43,4.03695267]
[1765056372611,8.32,132.44,132.43,11.58811177]
[1765056376817,0.1,132.47,132.43,11.58811177]
[1765056377006,0.1,132.47,132.46,3.32695267]
[1765056377207,8.4,132.47,132.46,3.32695267]
[1765056377407,8.4,132.47,132.46,4.03695267]
[1765056378302,8.4,132.47,132.46,11.58640156]
[1765056378917,0.1,132.47,132.46,11.58640156]
[1765056381831,0.8,132.47,132.44,0.66]
[1765056381999,0.8,132.47,132.44,3.32695267]
[1765056382000,8.3,132.46,132.44,3.32695267]
[1765056382402,9.0,132.46,132.44,3.32695267]
[1765056383043,8.3,132.46,132.45,0.66]
[1765056383411,8.3,132.46,132.44,11.53743433]
[1765056383608,8.3,132.46,132.45,0.66]
[1765056383811,8.3,132.46,132.44,11.53743433]
[1765056385710,8.3,132.46,132.45,3.98695267]
[1765056387138,9.0,132.46,132.44,3.32695267]
[1765056387929,8.3,132.46,132.44,11.53751284]
[1765056388334,8.3,132.46,132.45,3.98695267]
[1765056390342,8.3,132.46,132.45,11.53697154]
[1765056390636,0.1,132.47,132.45,3.98695267]
[1765056390843,0.8,132.47,132.45,3.98695267]
[1765056392040,0.1,132.47,132.46,3.98695267]
[1765056392537,0.1,132.47,132.46,11.53640156]
[1765056394433,0.1,132.47,132.46,3.32695267]
[1765056394639,0.8,132.47,132.43,10.87791972]
[1765056394822,8.3,132.46,132.43,11.53791972]
[1765056395232,9.0,132.46,132.43,11.53791972]
[1765056397746,9.0,132.46,132.44,3.32695267]
[1765056399326,0.7,132.45,132.43,3.32695267]
[1765056399933,0.7,132.45,132.42,11.53849592]
[1765056400338,0.7,132.45,132.43,3.32695267]
[1765056401044,8.3,132.46,132.43,10.8781077]
[1765056401246,8.3,132.46,132.44,0.66]
[1765056401456,9.0,132.46,132.44,0.66]
[1765056401635,9.0,132.46,132.44,3.98695267]
[1765056402233,9.0,132.46,132.44,3.32695267]
[1765056405633,15.84951999,132.46,132.43,0.66]
[1765056405840,0.7,132.45,132.43,3.32695267]
[1765056406040,0.7,132.45,132.43,11.53806411]
[1765056406447,0.7,132.45,132.43,13.39980775]
[1765056406661,9.0,132.46,132.43,13.39980775]
[1765056407340,9.0,132.46,132.44,5.18869631]
[1765056407543,9.0,132.46,132.44,5.84869631]
[1765056411755,8.3,132.46,132.44,5.84869631]
[1765056412938,8.34910664,132.47,132.44,5.84869631]
[1765056413140,8.3,132.46,132.44,5.84869631]
[1765056414162,8.3,132.46,132.44,5.18869631]
[1765056414361,8.4,132.47,132.45,5.88869631]
[1765056414666,8.4,132.47,132.46,5.18869631]
[1765056414838,8.4,132.47,132.45,5.88869631]
[1765056415262,8.4,132.47,132.46,0.67]
[1765056415668,8.4,132.47,132.46,5.85869631]
[1765056420756,0.1,132.47,132.46,5.85869631]
[1765056430367,0.1,132.47,132.46,5.18869631]
[1765056430562,0.1,132.47,132.45,12.73847906]
[1765056430563,0.79,132.47,132.45,12.73847906]
[1765056431881,0.79,132.47,132.45,13.40847906]
[1765056432763,0.79,132.47,132.45,12.73847906]
[1765056432961,0.79,132.47,132.43,5.18869631]
[1765056433273,0.1,132.47,132.44,5.85869631]
[1765056433473,0.1,132.47,132.45,5.85869631]
[1765056434011,0.79,132.47,132.45,5.85869631]
[1765056434280,0.1,132.47,132.46,5.18869631]
[1765056435459,0.79,132.47,132.45,5.18869631]
[1765056436567,0.79,132.47,132.45,5.85869631]
[1765056437084,0.79,132.47,132.45,5.18869631]
[1765056437577,8.33894306,132.47,132.43,5.18869631]
[1765056437782,0.69,132.46,132.42,5.85869631]
[1765056437995,8.3,132.45,132.42,5.85869631]
[1765056438362,8.99,132.45,132.42,5.85869631]
[1765056438883,8.99,132.45,132.42,13.41007403]
[1765056439995,8.3,132.45,132.44,5.18869631]
[1765056440656,8.3,132.45,132.44,5.84869631]
[1765056440857,8.4,132.47,132.44,5.84869631]
[1765056441056,16.60889533,132.47,132.43,13.39979105]
[1765056441256,0.66,132.46,132.43,5.84869631]
[1765056441464,0.66,132.46,132.43,5.18869631]
[1765056442383,0.66,132.46,132.42,13.40018616]
[1765056443086,8.20962745,132.46,132.42,13.40018616]
[1765056443266,0.66,132.45,132.42,13.40018616]
[1765056444785,0.66,132.45,132.43,0.66]
[1765056447885,0.66,132.45,132.43,5.84869631]
[1765056448098,7.54962745,132.46,132.43,5.84869631]
[1765056448293,0.66,132.45,132.43,5.84869631]
[1765056448665,0.66,132.45,132.44,5.18869631]
[1765056449065,0.66,132.45,132.43,5.84869631]
[1765056453174,9.06,132.47,132.44,5.84869631]
[1765056453377,9.06,132.47,132.45,5.18869631]
[1765056453584,9.06,132.47,132.45,5.84869631]
[1765056467308,16.60896939,132.47,132.45,5.18869631]
[1765056467608,16.60896939,132.47,132.44,13.39898832]
[1765056467785,16.60896939,132.47,132.44,12.73898832]
[1765056467988,16.60896939,132.47,132.45,0.66]
[1765056470214,16.60896939,132.47,132.44,11.58061229]
[1765056470710,16.60896939,132.47,132.45,0.71]
[1765056472116,16.60896939,132.47,132.44,11.58061229]
[1765056472320,16.60896939,132.47,132.45,0.71]
[1765056472501,9.06,132.47,132.45,4.03032028]
[1765056473611,8.4,132.47,132.45,3.32032028]
[1765056473816,9.06,132.47,132.45,4.03032028]
[1765056481025,0.68,132.46,132.43,3.32032028]
[1765056481622,0.68,132.46,132.43,3.99032028]
[1765056481801,0.68,132.46,132.44,0.67]
[1765056483030,0.68,132.46,132.44,3.99032028]
[1765056483821,16.62927291,132.47,132.44,3.99032028]
[1765056484703,9.08,132.47,132.45,3.99032028]
[1765056485213,9.08,132.47,132.45,3.32032028]
[1765056485419,0.68,132.46,132.45,3.32032028]
[1765056486210,0.68,132.46,132.44,11.54083945]
[1765056486411,9.08,132.47,132.45,3.99032028]
[1765056488607,16.62890799,132.47,132.45,3.32032028]
[1765056489296,16.62890799,132.47,132.44,0.67]
[1765056489497,0.68,132.46,132.44,3.99032028]
[1765056490832,8.22968666,132.46,132.43,3.32032028]
[1765056491012,8.22968666,132.46,132.43,3.99032028]
[1765056491206,0.68,132.45,132.43,3.99032028]
[1765056491606,8.22968666,132.46,132.43,3.99032028]
[1765056491807,8.22968666,132.46,132.44,3.32032028]